[Event "Asian Amateur-ch Open 2022"]
[Site "Muscat"]
[Date "2022.10.02"]
[Round "4.13"]
[White "Al Darwashi, Anas"]
[Black "Muhammad Shahzeb"]
[Result "0-1"]
[ECO "B01"]
[WhiteElo "1530"]
[BlackElo "1992"]
[Annotator "TA"]
[PlyCount "88"]
[EventDate "2022.09.29"]
[EventType "swiss"]
[SourceTitle "playchess.com"]
[Source "ChessBase"]
[SourceQuality "1"]
[TimeControl "5400+30"]

{[%evp 21,88,0,0,-46,-43,-51,-45,-52,-52,-62,-57,-97,-67,-154,-140,-148,-152,-145,-130,-154,-154,-145,-65,-95,-27,-49,85,-34,-41,-79,-40,-47,-49,-49,-52,-36,-45,-206,-208,-219,-184,-197,-166,-234,-237,-283,-272,-276,-271,-319,-156,-156,-156,-301,-303,-302,-294,-293,-293,-250,-242,-29983,-29978,-1722,-1452,-29989,-29990,-29990,-29983]} 1. e4 {[%emt 0:00:01]} d5 {[%emt 0:00:10]} 2. exd5 {[%emt 0:00:28]} Nf6 {[%emt 0:00:03]} 3. d4 {[%emt 0:01:02]} Nxd5 {[%emt 0:00:10]} 4. Nf3 {[%emt 0:01:59]} g6 {[%emt 0:00:07]} 5. c4 {[%emt 0:01:50]} Nb6 {[%emt 0:00:02]} 6. Nc3 {[%emt 0:02:05]} Bg7 {[%emt 0:00:04]} 7. Be3 {[%emt 0:06:00]} O-O {[%emt 0:00:17]} 8. h3 {[%emt 0:08:51]} Nc6 {[%emt 0:00:27][%cal Bb8c6,Bc6e7,Be7f5,Bf5e3][%mdl 32]} 9. Be2 {[%emt 0:01:52]} e5 {[%emt 0:00:01]} 10. d5 {[%emt 0:02:12]} Ne7 {[%emt 0:00:08]} 11. O-O {[%emt 0:02:02]} Nf5 {[%emt 0:00:02]} 12. Qb3 {[%emt 0:04:58] [#] B01: Scandinavian Defence.} (12. Bg5 $11 f6 13. Bc1) 12... Nxe3 $146 {[%emt 0:00:06]} ({Predecessor:} 12... Re8 13. Rad1 Nxe3 14. fxe3 e4 15. Nd2 Bf5 16. Kh1 Qh4 17. Rf4 Qd8 18. Nb5 Be5 19. Bg4 Bxf4 20. Bxf5 gxf5 21. exf4 {0-1 (38) Kozel,J (1750)-Vnenk,L (1946) Tatranska Lesna 2006}) 13. fxe3 {[%emt 0:02:40]} Nd7 {[%emt 0:00:03]} 14. Qc2 {[%emt 0:06:14] Black is slightly better.} a5 {[%emt 0:00:09][%cal Ba7a5,Ba5a4][%mdl 32]} 15. Rad1 {[%emt 0:08:45]} Nc5 {[%emt 0:00:33][%cal Oe5e4]} 16. a3 {[%emt 0:00:36]} a4 {[%emt 0:00:10]} 17. Ne1 {[%emt 0:03:02]} (17. e4 $15) 17... Qg5 {[%emt 0:00:13]} 18. Rf3 {[%emt 0:02:13]} f5 {[%emt 0:00:17] Strongly threatening ...e4.} 19. e4 {[%emt 0:05:40]} Bd7 {[%emt 0:00:01]} 20. Bd3 {[%emt 0:04:14] [#]} Nb3 $1 {[%emt 0:00:16]} 21. Rf2 {[%emt 0:04:33] [#]} f4 {[%emt 0:00:02]} (21... Nd4 $1 $17 {[%cal Rd4c2]} 22. Nf3 Qe3) 22. Nf3 {[%emt 0:01:02]} Qh5 {[%emt 0:00:39]} (22... Qf6 $17) 23. Be2 {[%emt 0:05:08]} b6 {[%emt 0:00:11]} (23... Nc5 $1 $15 {keeps the upper hand.}) 24. Nh2 {[%emt 0:00:37] Pair of Knights!} ({Better is} 24. Nb5 $16) 24... Qh4 {[%emt 0:00:30]} 25. Qd3 {[%emt 0:03:22]} h5 {[%emt 0:00:32] Black is much more active. The white rooks are badly placed.} 26. d6 {[%emt 0:00:12]} Nc5 {[%emt 0:01:00]} 27. Qd5+ {[%emt 0:00:25]} Be6 {[%emt 0:00:17]} 28. Qc6 {[%emt 0:00:20]} cxd6 {[%emt 0:02:27]} 29. Qxb6 $2 {[%emt 0:03:15] Now White is beyond hope.} (29. Nf3 $15 Qf6 30. Rxd6) 29... Ra6 $19 {[%emt 0:02:13]} 30. Qb4 {[%emt 0:02:27]} Qd8 {[%emt 0:00:29]} ({Stronger than} 30... Qg3 31. Rxd6 Rxd6 32. Qxc5 $17) 31. Bf3 {[%emt 0:01:19]} Qb8 {[%emt 0:03:39]} 32. Nd5 {[%emt 0:02:40]} (32. Rfd2 {was worth a try.}) 32... Bxd5 {[%emt 0:00:13]} 33. Qxb8 {[%emt 0:02:01]} Rxb8 {[%emt 0:00:02]} 34. cxd5 {[%emt 0:00:00]} Rab6 {[%emt 0:00:08]} 35. Rdd2 {[%emt 0:00:45]} Nb3 {[%emt 0:00:56]} (35... Bf6 $19 {and Black stays clearly on top. White must now prevent ...Bh4.} 36. Rc2 Bh4) 36. Rc2 $17 {[%emt 0:00:48]} Nd4 {[%emt 0:00:03]} 37. Rc4 {[%emt 0:00:42]} (37. Rcd2 $17) 37... Rxb2 $19 {[%emt 0:00:21]} 38. Rxb2 {[%emt 0:00:30]} Rxb2 {[%emt 0:00:02]} 39. Rxa4 {[%emt 0:00:03]} Bf6 {[%emt 0:00:17]} 40. Nf1 {[%emt 0:02:03]} Bh4 {[%emt 0:00:13] Hoping for ...Bf2+.} 41. Ra6 $2 {[%emt 0:01:25]} (41. Rb4 $19 Ra2 42. Rb1) 41... Bf2+ {[%emt 0:00:06]} 42. Kh2 {[%emt 0:00:27]} Rb1 {[%emt 0:00:35]} 43. g3 {[%emt 0:01:38]} Nxf3+ {[%emt 0:00:46]} 44. Kg2 {[%emt 0:00:03]} Bc5 {[%emt 1:33:30] Weighted Error Value: White=0.60/Black=0.19 (very precise)} 0-1

[Event "Asian Amateur-ch Open 2022"]
[Site "Muscat"]
[Date "2022.10.02"]
[Round "4.14"]
[White "Owlad, Ehsan"]
[Black "Al Zadjali, Abdul Rahman"]
[Result "0-1"]
[ECO "A47"]
[WhiteElo "1962"]
[BlackElo "1534"]
[Annotator "TA"]
[PlyCount "144"]
[EventDate "2022.09.29"]
[EventType "swiss"]
[SourceTitle "playchess.com"]
[Source "ChessBase"]
[SourceQuality "1"]
[TimeControl "5400+30"]

{[%evp 11,144,2,2,-14,-6,-49,-43,-56,-52,-45,-44,-41,-31,-35,-1,-63,0,-10,0,0,10,20,11,13,35,0,0,-43,-5,-2,-21,-6,11,-98,-91,-103,-84,-92,-80,-166,-175,-179,-127,-178,-75,-73,-41,-41,0,-14,0,-58,-30,-318,-35,-458,-450,-459,-410,-400,-404,-370,-168,-150,-189,-189,-166,-134,-144,-154,-158,-160,-73,-87,-58,-170,-116,-195,0,-706,0,-632,0,0,23,0,51,20,97,95,244,252,253,235,910,627,734,806,733,627,609,559,1188,1192,1593,1425,29984,-608,-607,-604,-656,-607,-604,-581,-560,-29965,-29962,-4627,-4627,-29978,-29979,-29979,-29980,-29979,-29980,-29981,-29981,-29981,-29982,-29983,-29982,-29982,-29983,-29989,-29990]} 1. d4 {[%emt 0:00:30]} Nf6 {[%emt 0:00:57]} 2. Nf3 {[%emt 0:00:09]} c5 {[%emt 0:00:47]} 3. c3 {[%emt 0:01:09]} b6 {[%emt 0:00:23][%cal Bb7b6,Bb6c5,Bc5c4][%mdl 32]} 4. Bf4 {[%emt 0:00:40]} Bb7 {[%emt 0:01:46]} 5. Nbd2 {[%emt 0:00:15]} e6 {[%emt 0:00:32]} 6. e3 {[%emt 0:00:31]} Be7 {[%emt 0:01:03]} 7. dxc5 {[%emt 0:01:37] A47: 1 d4 Nf6 2 Nf3 b6: Torre, London and Colle Systems.} bxc5 {[%emt 0:00:42]} 8. Nc4 {[%emt 0:01:07] [#]} d5 $146 {[%emt 0:01:03]} ({Predecessor:} 8... Bxf3 9. Qxf3 d5 10. Rd1 O-O 11. Be2 Nbd7 12. Ne5 Nxe5 13. Bxe5 Qb6 14. b3 Ne4 {0-1 (23) Koglin,J-Dittmar,P freechess.de 2014}) 9. Nce5 {[%emt 0:00:30] aiming for Bb5+. Black is slightly better.} O-O {[%emt 0:00:52]} 10. Bd3 {[%emt 0:01:32]} Nbd7 {[%emt 0:02:23]} 11. O-O {[%emt 0:00:34]} c4 {[%emt 0:07:05]} 12. Bc2 {[%emt 0:00:20]} Nc5 {[%emt 0:01:11]} 13. h3 {[%emt 0:00:57]} (13. Nd4 $11) 13... Nfe4 {[%emt 0:02:03]} (13... a5 $15) 14. Nd4 $1 $11 {[%emt 0:01:06]} Rc8 {[%emt 0:05:15]} 15. f3 {[%emt 0:00:57]} Nd6 {[%emt 0:00:45]} 16. Qb1 {[%emt 0:00:47]} h6 {[%emt 0:05:08]} 17. Qe1 {[%emt 0:01:22]} f6 {[%emt 0:04:06]} 18. Ng6 {[%emt 0:00:46]} e5 {[%emt 0:00:55]} 19. Bh2 {[%emt 0:03:02]} ({Of course not} 19. Nxf8 Bxf8 20. Bg3 exd4 21. exd4 Nd3 22. Qe6+ Kh8 $17) 19... Re8 {[%emt 0:02:34] And now ...Nd3 would win.} ({Resist} 19... exd4 20. exd4 Re8 21. dxc5 $16) (19... Rf7 $5 {[%cal Re5d4]} 20. Nf5 Nxf5 21. Bxf5 Rb8 $15) 20. Nf5 {[%emt 0:01:35]} Nxf5 {[%emt 0:00:20]} 21. Bxf5 {[%emt 0:00:28]} Rb8 {[%emt 0:07:24]} 22. Rd1 {[%emt 0:04:49]} (22. b4 $11 Nd3 23. Nxe7+ Qxe7 24. Qd2) 22... Bc8 $1 $17 {[%emt 0:01:57]} 23. Bxc8 {[%emt 0:03:11]} Rxc8 {[%emt 0:00:17]} 24. Qg3 {[%emt 0:02:39]} Nd3 {[%emt 0:02:05]} 25. b4 {[%emt 0:02:38] Prevents Bc5.} (25. Nh4 $17) 25... a5 {[%emt 0:02:06]} 26. a3 {[%emt 0:00:19]} Qb6 {[%emt 0:02:05]} (26... axb4 $19 27. axb4 Qd7) 27. Qg4 {[%emt 0:01:40]} (27. f4 $17) 27... Rcd8 {[%emt 0:02:13]} (27... Bd6 $19 {is more deadly.} 28. Kh1 axb4 29. axb4 Qxe3) 28. Kh1 {[%emt 0:00:34]} axb4 {[%emt 0:01:28]} 29. axb4 {[%emt 0:00:02]} Bf8 {[%emt 0:00:52]} (29... Bd6 $5 {[%cal Rb6e3]} 30. Bg1 Qb7 $15) 30. Bg1 {[%emt 0:00:48]} Qe6 {[%emt 0:02:23]} 31. Qh5 {[%emt 0:05:01]} (31. Qxe6+ $11 Rxe6 32. Ra1) 31... Qf7 {[%emt 0:02:55][%cal Od5d4]} 32. Ra1 $2 {[%emt 0:01:30][%mdl 8192]} (32. Qf5 $1 $11 {and White has nothing to worry.}) 32... Bd6 $2 {[%emt 0:00:46]} (32... d4 $1 $19 {[%cal Rd4c3]} 33. e4 (33. exd4 $2 exd4 34. Qg4 f5 $19) 33... dxc3) 33. Qg4 $2 {[%emt 0:03:39][%mdl 8192]} (33. Qf5 $1 $15) 33... f5 $19 {[%emt 0:01:09]} 34. Qg3 {[%emt 0:02:33]} e4 {[%emt 0:06:49]} 35. f4 {[%emt 0:02:56]} Re6 {[%emt 0:00:30]} 36. Ne5 {[%emt 0:03:09]} Nxe5 {[%emt 0:01:37]} (36... Rxe5 $142 37. fxe5 Bxe5) 37. fxe5 {[%emt 0:00:30]} Bxe5 {[%emt 0:00:09]} 38. Qe1 {[%emt 0:00:16]} Qf6 {[%emt 0:01:45]} 39. Ra3 {[%emt 0:00:55]} g5 {[%emt 0:00:25] Black has more active pieces.} 40. Bh2 {[%emt 0:01:43]} f4 {[%emt 0:01:45]} 41. Qd2 {[%emt 0:02:34][%cal Re3f4]} f3 {[%emt 0:02:49]} (41... Qf5 $142 $1 42. b5 Bg7) 42. Bxe5 $17 {[%emt 0:01:50]} Rxe5 {[%emt 0:03:18]} 43. b5 {[%emt 0:02:03]} (43. Qd4 $1 $15) 43... Rf8 $19 {[%emt 0:07:42] Strongly threatening ...fxg2+.} 44. g3 {[%emt 0:03:15]} (44. Kg1 $17 {was called for.}) 44... f2 $2 {[%emt 0:02:23]} (44... Rb8 $19 45. Ra6 Qg7) 45. Ra6 $2 {[%emt 0:01:49][%mdl 8192]} (45. Ra2 $11) 45... Qf3+ {[%emt 0:00:42]} 46. Kh2 {[%emt 0:00:24] Threatens to win with Qd4.} h5 $2 {[%emt 0:00:55]} ({Black should play} 46... g4 $1 $19 {( -> ...Rh5)} 47. Rxh6 gxh3 48. Rxh3 Rh5) 47. Qd4 $11 {[%emt 0:00:52]} Qf5 {[%emt 0:01:29]} 48. b6 {[%emt 0:01:42][%cal Bb5b6,Bb6b7][%mdl 1056] b7 is the strong threat. White has compensation.} Re6 {[%emt 0:01:31]} ({Better is} 48... Re7 $11) 49. Ra7 {[%emt 0:03:03][%csl Ga7][%cal Rd4g7]} (49. Ra5 $5 {[%cal Ra5d5]} Qe5 50. Qxd5 Qxd5 51. Rxd5 $16) 49... Ref6 {[%emt 0:02:43]} (49... Qe5 $1 $11) 50. Ra5 $16 {[%emt 0:02:50]} Rd6 {[%emt 0:02:31]} (50... h4 $16 51. Rxd5 hxg3+ 52. Kxg3 Qe6) 51. b7 $1 $18 {[%emt 0:00:56]} ({Not} 51. Ra7 Qf6 $11) 51... h4 {[%emt 0:01:38]} 52. g4 {[%emt 0:03:45]} Qe6 {[%emt 0:06:18]} (52... Qf3 53. Qe5 Qg3+ 54. Qxg3 hxg3+ 55. Kxg3 Rb6 56. Rxf2 Rxf2 57. Kxf2 Rxb7 58. Rxd5 Rf7+ 59. Rf5 Rg7) 53. Rb5 {[%emt 0:04:06]} Rdd8 {[%emt 0:01:34] [#]} 54. Rb6 {[%emt 0:00:48] Against Qd6+} Qf7 {[%emt 0:00:13]} 55. Qe5 {[%emt 0:00:45]} Qg7 {[%emt 0:01:06] [#]} 56. Qe6+ {[%emt 0:01:13]} Kh8 {[%emt 0:00:33]} 57. Kg2 {[%emt 0:00:49]} Rde8 {[%emt 0:00:30]} 58. Qxd5 {[%emt 0:01:15]} Qc7 {[%emt 0:00:32]} 59. Rd6 $4 {[%emt 0:00:54][%mdl 8192] [#]} (59. Rh6+ {was the only winning move.} Qh7 60. Rxh7+ Kxh7 61. Qxg5 Rd8 62. Rxf2 Rxf2+ 63. Kxf2 Rd2+ 64. Ke1) 59... Rf6 $3 $19 {[%emt 0:00:26][%mdl 512]} 60. Qxg5 {[%emt 0:08:17]} Qxd6 {[%emt 0:00:31]} 61. Qxh4+ {[%emt 0:00:34]} Kg7 {[%emt 0:00:17] Hoping for ...Qe5.} 62. Qg5+ {[%emt 0:00:21]} Rg6 {[%emt 0:00:21]} 63. Qb5 {[%emt 0:00:53]} Rh8 {[%emt 0:00:29]} 64. Qf5 {[%emt 0:08:09] [#]} Rxh3 $3 {[%emt 0:00:22][%csl Gd6][%cal Rh3h2][%mdl 512]} 65. Qxg6+ (65. Qf4 Qxf4) 65... Kxg6 {[%emt 0:00:01][%csl Gh3][%cal Rd6g3] Black mates.} 66. Kxh3 {[%emt 0:06:36] KQ-KR} Qb8 {[%emt 0:00:10]} 67. Rxf2 {[%emt 0:01:09]} Qxb7 {[%emt 0:00:01]} 68. Rd2 {[%emt 0:00:19]} Qh7+ {[%emt 0:00:34]} 69. Kg3 {[%emt 0:00:32]} Qc7+ {[%emt 0:00:11]} 70. Kh3 {[%emt 0:00:17]} Qe5 {[%emt 0:00:36]} 71. Rd4 {[%emt 0:00:14]} Qf6 {[%emt 0:00:51]} 72. Rxc4 {[%emt 0:00:25]} Qf1+ {[%emt 0:00:10] Weighted Error Value: White=0.60/Black=0.56} 0-1

[Event "Asian Amateur-ch Open 2022"]
[Site "Muscat"]
[Date "2022.10.02"]
[Round "4.15"]
[White "Salim Mohammed, Salim Al Amri"]
[Black "Vijay Chauhan"]
[Result "0-1"]
[ECO "B18"]
[WhiteElo "1952"]
[BlackElo "1526"]
[Annotator "TA"]
[PlyCount "100"]
[EventDate "2022.09.29"]
[EventType "swiss"]
[SourceTitle "playchess.com"]
[Source "ChessBase"]
[SourceQuality "1"]
[TimeControl "5400+30"]

{[%evp 11,100,16,10,-8,15,-12,0,-3,-4,-52,-21,-51,81,-93,-97,-100,-106,-107,-69,-105,-98,-139,-101,-144,-50,-47,-43,-39,-22,-16,-29,-77,-68,-67,-58,-68,-38,-185,-93,-92,-96,-70,-29,-209,-175,-203,0,-193,0,-168,-176,-149,-130,-238,-217,-298,-310,-308,-289,-319,-299,-363,-312,-325,-299,-302,-288,-531,-499,-479,-492,-460,-395,-340,-262,-262,-262,-384,-329,-733,-678,-2511,-1755,-29988,-29989,-29989,-29990,-29991,-29990,-29993,-29994]} 1. e4 {[%emt 0:00:03]} c6 {[%emt 0:00:04]} 2. d4 {[%emt 0:00:05]} d5 {[%emt 0:00:04]} 3. Nc3 {[%emt 0:01:06]} dxe4 {[%emt 0:00:06]} 4. Nxe4 {[%emt 0:00:05]} Bf5 {[%emt 0:00:07]} 5. Ng3 {[%emt 0:00:05]} Bg6 {[%emt 0:00:03]} 6. Bc4 {[%emt 0:01:18]} e6 {[%emt 0:00:30]} 7. f4 {[%emt 0:00:16] B18: Classical Caro-Kann: 4...Bf5 sidelines.} Nf6 {[%emt 0:01:03]} 8. Nh3 {[%emt 0:00:16]} Bd6 {[%emt 0:02:12]} 9. O-O {[%emt 0:00:03] The position is equal.} O-O {[%emt 0:02:48]} 10. Bd3 {[%emt 0:00:02] [#]} (10. f5 $11 {deserves consideration.} Bxf5 11. Nxf5 exf5 12. Rxf5) 10... Nbd7 $146 {[%emt 0:04:22]} ({Predecessor:} 10... Bxd3 11. Qxd3 c5 12. Ne4 Be7 13. Nxc5 Bxc5 14. dxc5 Qxd3 15. cxd3 Na6 16. d4 Rfd8 {0-1 (35) Magklara,E-Koerant,F (2163) Nikaia 2007}) 11. f5 {[%emt 0:00:18]} (11. Ng5 {is interesting.} c5 12. Bxg6 hxg6 13. dxc5 Nxc5 14. Qf3) 11... Bxg3 {[%emt 0:00:37]} (11... exf5 $15 12. Nxf5 Qc7) 12. hxg3 $2 {[%emt 0:01:19]} (12. fxg6 $16 {is forced if you want to stay better.} Bc7 13. gxf7+ Rxf7 14. Ng5) 12... Bxf5 {[%emt 0:11:04]} 13. Bxf5 {[%emt 0:00:05]} exf5 {[%emt 0:00:53]} 14. Rxf5 {[%emt 0:00:02]} Qe7 {[%emt 0:04:23]} 15. Bg5 {[%emt 0:03:22]} h6 {[%emt 0:02:29]} 16. Bd2 {[%emt 0:00:02]} Rfe8 {[%emt 0:03:49]} 17. g4 {[%emt 0:00:15]} Qe2 {[%emt 0:01:17]} ({Black should play} 17... Qe4 $17 18. Rf4 Qg6) 18. g5 $15 {[%emt 0:00:13]} hxg5 {[%emt 0:10:46]} 19. Nxg5 {[%emt 0:00:35]} Qc4 {[%emt 0:07:20]} 20. c3 {[%emt 0:01:16]} Re2 {[%emt 0:00:41]} 21. Rf3 {[%emt 0:01:17] Prevents Qd3.} (21. Qc2 $11) 21... Rae8 $17 {[%emt 0:03:43]} 22. b3 {[%emt 0:00:33]} Qd5 {[%emt 0:01:19]} 23. Nh3 $1 {[%emt 0:00:15] [#] Nf4 is the strong threat.} Nh5 {[%emt 0:03:52] Black is much more active.} (23... R2e4 $5 {[%cal Rc6c5]}) 24. Kf1 {[%emt 0:06:53]} ({White should try} 24. Rf2 $1 $15 Rxf2 25. Nxf2) 24... Nf8 {[%emt 0:08:16]} (24... Qe6 $19 {Strongly threatening ...Qg6.} 25. Ng1 Re4) 25. Qxe2 {[%emt 0:00:15]} Rxe2 $40 {[%emt 0:00:09][%mdl 128] Black has strong attack.} 26. Kxe2 {[%emt 0:00:02]} Qe4+ {[%emt 0:00:28]} (26... Ng6 $5 {[%cal Rg6h4]} 27. Be1 c5 $17) 27. Be3 $2 {[%emt 0:03:11]} (27. Kf1 $11) 27... Qc2+ {[%emt 0:01:54][%mdl 64] Skewer} 28. Bd2 {[%emt 0:00:03]} Qe4+ {[%emt 0:02:24]} 29. Be3 {[%emt 0:03:23] [#]} Qc2+ $2 {[%emt 0:00:20]} (29... Ng6 $1 $19 {[%cal Rg6h4] And now ...Nh4 would win.} 30. Kd2 Qg4) 30. Kf1 $2 {[%emt 0:01:05]} (30. Bd2 $1 $11 {and White stays safe.}) 30... Qxc3 $19 {[%emt 0:00:43]} 31. Re1 {[%emt 0:00:14]} Ne6 {[%emt 0:01:36]} 32. Bf2 {[%emt 0:01:47]} (32. Nf4 $17 Nhxf4 33. Bxf4 Qxd4 34. Be3) 32... Qb2 {[%emt 0:02:14]} 33. g4 {[%emt 0:00:23]} Nf6 {[%emt 0:01:41]} 34. g5 {[%emt 0:00:13]} Ng4 {[%emt 0:00:49] Pair of Knights!} 35. Kg2 {[%emt 0:04:08][%cal Og5g6] Inhibits Nh2.} Nxf2 {[%emt 0:02:27] Chess con chili.} ({Worse is} 35... Qxa2 36. g6 Nf6 37. Rfe3 $15) (35... Nxd4 $2 36. Re8+ Kh7 37. Rg3 $18) 36. Nxf2 {[%emt 0:02:34][%cal Og5g6] Threatens to win with g6!} Nxg5 {[%emt 0:01:33]} 37. Re8+ {[%emt 0:00:55]} Kh7 {[%emt 0:00:03]} 38. Rg3 {[%emt 0:00:45]} f6 {[%emt 0:01:18]} 39. Rd8 $2 {[%emt 0:02:17]} (39. Re7) 39... Ne4 {[%emt 0:01:37]} 40. Rf3 {[%emt 0:00:46]} Qxa2 {[%emt 0:00:34]} 41. Rd7 {[%emt 0:01:09]} Nxf2 {[%emt 0:05:41]} 42. Rxf2 {[%emt 0:00:01][%mdl 4096] Endgame KQ-KRR} Qa5 {[%emt 0:02:58]} 43. Rxb7 {[%emt 0:01:16]} Qd5+ {[%emt 0:00:05]} 44. Rf3 {[%emt 0:00:49]} (44. Kf1 $142) 44... c5 {[%emt 0:00:30][%cal Bc6c5,Bc5d4,Bd4d3,Bd3d2][%mdl 32]} 45. Rxa7 {[%emt 0:00:43]} (45. Rb5) 45... cxd4 {[%emt 0:00:12]} 46. Ra2 {[%emt 0:01:05]} d3 {[%emt 0:00:06]} 47. Rd2 {[%emt 0:00:29]} Qg5+ {[%emt 0:12:50] Black mates.} 48. Kh1 {[%emt 0:01:05]} Qxd2 {[%emt 0:00:00]} 49. b4 {[%emt 0:00:11]} Qe1+ {[%emt 0:00:00]} 50. Kh2 {[%emt 0:00:10]} d2 {[%emt 0:00:00] Weighted Error Value: White=0.72/Black=0.42} 0-1

[Event "Asian Amateur-ch Open 2022"]
[Site "Muscat"]
[Date "2022.10.02"]
[Round "4.16"]
[White "Rafee, Mohd Hayel"]
[Black "Al Ryami, Mustafa"]
[Result "1-0"]
[ECO "C01"]
[WhiteElo "1941"]
[BlackElo "1488"]
[Annotator "TA"]
[PlyCount "51"]
[EventDate "2022.09.29"]
[EventType "swiss"]
[SourceTitle "playchess.com"]
[Source "ChessBase"]
[SourceQuality "1"]
[TimeControl "5400+30"]

{[%evp 9,51,79,72,70,82,68,98,75,81,79,120,93,129,139,200,129,148,129,128,94,189,181,200,204,189,206,390,380,378,350,539,518,506,506,862,551,547,531,2138,2005,2555,2481,2436,2271]} 1. e4 {[%emt 0:00:04]} Nc6 {[%emt 0:04:45]} 2. d4 {[%emt 0:02:14]} e6 {[%emt 0:01:38]} 3. Nf3 {[%emt 0:01:50]} d6 {[%emt 0:03:32]} 4. Bd3 {[%emt 0:01:08]} Be7 {[%emt 0:01:39]} 5. O-O {[%emt 0:00:24]} Nf6 {[%emt 0:00:34]} 6. c3 {[%emt 0:00:14] Inhibits Nb4. C01: French: Exchange Variation.} a6 {[%emt 0:00:27] [#]} 7. Qe2 $146 {[%emt 0:01:42]} ({Predecessor:} 7. h3 e5 8. d5 Nb8 9. c4 Nbd7 10. Nc3 Nf8 11. Re1 Ng6 12. Bf1 h5 13. b4 {1-0 (57) Filipovic,B (2426)-Welz,T (2233) Germany 2008}) 7... O-O {[%emt 0:02:55]} 8. Rd1 {[%emt 0:00:21] White is better.} (8. e5 {with more complications.} Nd5 9. Re1 f5 10. exf6 Bxf6 11. Qe4) 8... Bd7 {[%emt 0:02:46]} 9. Nbd2 {[%emt 0:03:01][%cal Bb1d2,Bd2f1,Bf1g3,Bg3e4][%mdl 32]} b5 {[%emt 0:02:21]} 10. Nf1 {[%emt 0:02:13]} Na7 {[%emt 0:01:28]} 11. Ng3 {[%emt 0:01:27]} c5 {[%emt 0:02:54]} (11... Nc6 $16 12. a4 bxa4) 12. e5 {[%emt 0:00:30]} c4 {[%emt 0:08:27]} 13. Bc2 {[%emt 0:02:41] White has more active pieces.} (13. exf6 $6 cxd3 14. Qxd3 Bxf6 $11) 13... Nd5 {[%emt 0:02:42]} 14. Ne4 {[%emt 0:03:08]} (14. Qe4 $6 g6 $14) 14... Bc6 {[%emt 0:05:46]} (14... dxe5 $16 15. dxe5 (15. Nxe5 Nc6 $14) 15... Nc6) 15. Nfg5 {[%emt 0:06:10]} (15. exd6 $6 Bxd6 16. a4 f6 $16) 15... h6 {[%emt 0:14:57] [#]} 16. Qh5 {[%emt 0:14:45][%cal Og5h7] Nh7! is the strong threat.} Be8 {[%emt 0:10:15] [#] Strongly threatening ...f5.} 17. Qh3 $40 {[%emt 0:07:13][%cal Og5h7][%mdl 128] Threatens to win with Nh7! Black is in trouble.} ({Stronger than} 17. exd6 Bxg5 18. Bxg5 f6 $19) 17... Qd7 $2 {[%emt 0:02:51] [#]} (17... Nc6 {is a better defense.} 18. exd6 (18. Nxe6 fxe6 19. exd6 Bf6 $11) 18... Bxg5) 18. Nh7 $1 $18 {[%emt 0:00:48][%mdl 512]} f5 {[%emt 0:01:40]} 19. exf6 {[%emt 0:04:56]} ({Less strong is} 19. Nxf8 Bxf8 20. Nxd6 Bxd6 $18) 19... Nxf6 {[%emt 0:01:44]} (19... Bxf6 $142 20. Nxf8 Kxf8) 20. Nxf8 {[%emt 0:01:32] White is clearly winning.} Kxf8 {[%emt 0:00:07]} 21. Bxh6 {[%emt 0:00:56][%cal Bc1h6,Bh6f4,Bf4d6,Bd6e7][%mdl 32]} d5 {[%emt 0:02:52]} (21... e5 $142 22. Bxg7+ Kxg7 23. Qg3+ Qg4 24. dxe5 dxe5 25. Nxf6 Qxg3) 22. Nxf6 {[%emt 0:03:33]} Bxf6 {[%emt 0:00:05]} 23. Bf4 {[%emt 0:00:42]} Qf7 {[%emt 0:00:39]} 24. Bd6+ {[%emt 0:00:31]} Be7 {[%emt 0:01:33]} 25. Qh8+ {[%emt 0:00:06]} Qg8 {[%emt 0:00:03]} 26. Bxe7+ {[%emt 0:00:06] Weighted Error Value: White=0.36/Black=0.60} 1-0

[Event "Asian Amateur-ch Open 2022"]
[Site "Muscat"]
[Date "2022.10.02"]
[Round "4.17"]
[White "Sharaf, Khaleel"]
[Black "Shelke Omkar"]
[Result "0-1"]
[ECO "A90"]
[WhiteElo "1874"]
[BlackElo "1460"]
[Annotator "NA RC COMBH"]
[PlyCount "64"]
[EventDate "2022.09.29"]
[EventType "swiss"]
[SourceTitle "playchess.com"]
[Source "ChessBase"]
[SourceQuality "1"]
[TimeControl "5400+30"]

1. c4 {[%emt 0:00:02]} e6 {[%emt 0:00:09]} 2. Nf3 {[%emt 0:00:09]} d5 {[%emt 0:00:08]} 3. d4 {[%emt 0:00:04]} c6 {[%emt 0:00:11]} 4. g3 {[%emt 0:00:10]} f5 {[%emt 0:00:06]} 5. Bg2 {[%emt 0:00:34]} Bd6 {[%emt 0:00:02]} 6. O-O {[%emt 0:01:26]} Nd7 {[%emt 0:00:30]} 7. Nc3 {[%emt 0:01:58]} Ngf6 {[%emt 0:01:06]} 8. b3 {[%emt 0:00:58]} O-O {[%emt 0:00:13]} 9. Ng5 {[%emt 0:01:57]} Qe7 {[%emt 0:01:59]} 10. f3 {[%emt 0:02:39]} e5 {[%emt 0:03:52]} 11. dxe5 {[%emt 0:07:44]} Bxe5 {[%emt 0:01:59]} 12. Bb2 {[%emt 0:03:42]} Bxc3 {[%emt 0:00:31]} 13. Bxc3 {[%emt 0:01:26]} Qe3+ {[%emt 0:00:12]} 14. Kh1 {[%emt 0:00:19]} Qxc3 {[%emt 0:04:03]} 15. cxd5 {[%emt 0:05:53]} Nxd5 {[%emt 0:01:24]} 16. Rc1 {[%emt 0:07:45]} Qf6 {[%emt 0:00:43]} 17. Qd2 {[%emt 0:00:30]} f4 {[%emt 0:01:31]} 18. Ne4 {[%emt 0:02:12]} Qe5 {[%emt 0:01:19]} 19. gxf4 {[%emt 0:01:11]} Qxf4 {[%emt 0:00:24]} 20. Qd3 {[%emt 0:02:04]} N7f6 {[%emt 0:02:04]} 21. Ng3 {[%emt 0:00:06]} Ne3 {[%emt 0:01:51]} 22. Rg1 {[%emt 0:00:36]} Nfd5 {[%emt 0:00:40]} 23. Bf1 {[%emt 0:03:25]} Bf5 {[%emt 0:03:17]} 24. Nxf5 {[%emt 0:01:31]} Qxf5 {[%emt 0:03:01]} 25. Qd4 {[%emt 0:00:55]} Qf6 {[%emt 0:00:24]} 26. Qd3 {[%emt 0:01:00]} Rae8 {[%emt 0:02:40]} 27. b4 {[%emt 0:01:49]} Re5 {[%emt 0:02:34]} 28. b5 {[%emt 0:02:04]} Rh5 {[%emt 0:01:18]} 29. bxc6 {[%emt 0:00:31]} Qh4 {[%emt 0:01:03]} 30. Bh3 {[%emt 0:00:49]} Qxh3 {[%emt 0:02:39]} 31. Rxg7+ {[%emt 0:00:11]} Kxg7 {[%emt 0:00:53]} 32. Rg1+ {[%emt 0:00:02]} Kf7 {[%emt 0:00:37]} 0-1